[Event "71st RUS-ch Higher League 2018"]
[Site "Yaroslavl"]
[Date "2018.06.27"]
[Round "2"]
[White "Vastrukhin, Oleg"]
[Black "Alekseenko, Kirill"]
[Result "0-1"]
[ECO "A37"]
[WhiteElo "2420"]
[BlackElo "2621"]
[Annotator "ChessBase"]
[PlyCount "72"]
[EventDate "2018.06.26"]
[EventType "swiss"]
[EventCountry "RUS"]
[SourceTitle "playchess.com"]
[Source "ChessBase"]
[SourceQuality "1"]
[TimeControl "40/5400+30:1800+30"]

1. Nf3 {[%emt 0:00:00]} c5 {[%emt 0:00:27]} 2. g3 {[%emt 0:00:00]} Nc6 {[%emt 0:00:19]} 3. Bg2 {[%emt 0:00:34]} g6 {[%emt 0:00:27]} 4. c4 {[%emt 0:03:39]} Bg7 {[%emt 0:00:29]} 5. Nc3 {[%emt 0:00:10]} d6 {[%emt 0:00:40]} 6. O-O {[%emt 0:00:25]} Bf5 {[%emt 0:00:16]} 7. d3 {[%emt 0:02:09]} Qd7 {[%emt 0:00:36]} 8. Bd2 {[%emt 0:01:30]} Bh3 {[%emt 0:00:52]} 9. Rb1 {[%emt 0:01:36]} h5 {[%emt 0:18:15]} 10. Bxh3 {[%emt 0:06:25]} Qxh3 {[%emt 0:00:07]} 11. Ng5 {[%emt 0:00:03]} Qd7 {[%emt 0:00:48]} 12. h4 {[%emt 0:00:13]} Nh6 {[%emt 0:01:57]} 13. Nd5 {[%emt 0:04:32]} O-O {[%emt 0:02:52]} 14. e3 {[%emt 0:11:04]} e6 {[%emt 0:04:29]} 15. Nf4 {[%emt 0:09:01]} Rab8 {[%emt 0:05:12]} 16. Bc3 {[%emt 0:12:36]} Ne5 {[%emt 0:00:28]} 17. Qe2 {[%emt 0:03:24]} b5 {[%emt 0:05:53]} 18. cxb5 {[%emt 0:05:16]} Qxb5 {[%emt 0:01:32]} 19. d4 {[%emt 0:02:18]} cxd4 {[%emt 0:01:41]} 20. Bxd4 {[%emt 0:04:08]} Qa4 {[%emt 0:03:43]} 21. b3 {[%emt 0:03:04]} Qa3 {[%emt 0:00:12]} 22. Rfc1 {[%emt 0:03:14]} Rfc8 {[%emt 0:02:05]} 23. Qb2 {[%emt 0:06:46]} Qa6 {[%emt 0:00:57]} 24. e4 {[%emt 0:03:15]} Qb7 {[%emt 0:07:51]} 25. Qe2 {[%emt 0:02:28]} a5 {[%emt 0:00:29]} 26. f3 {[%emt 0:03:33]} Nxf3+ {[%emt 0:05:34]} 27. Nxf3 {[%emt 0:00:05]} e5 {[%emt 0:00:09]} 28. Bxe5 {[%emt 0:10:38]} Bxe5 {[%emt 0:01:15]} 29. Nxe5 {[%emt 0:01:52]} dxe5 {[%emt 0:00:05]} 30. Nd5 {[%emt 0:00:03]} Ng4 {[%emt 0:00:09]} 31. Kg2 {[%emt 0:00:56]} Kg7 {[%emt 0:00:23]} 32. Rxc8 {[%emt 0:00:32]} Rxc8 {[%emt 0:00:09]} 33. Re1 {[%emt 0:00:27]} Rc5 {[%emt 0:01:06]} 34. Qf3 {[%emt 0:00:26]} Qa6 {[%emt 0:01:49]} 35. Re2 {[%emt 0:00:37]} Rc1 {[%emt 0:00:15]} 36. Ne3 {[%emt 0:00:20]} Rc3 {[%emt 0:00:19]} 0-1

[Event "71st RUS-ch Higher League 2018"]
[Site "Yaroslavl"]
[Date "2018.06.28"]
[Round "3"]
[White "Lysyj, Igor"]
[Black "Timofeev, Artyom"]
[Result "0-1"]
[ECO "D30"]
[WhiteElo "2630"]
[BlackElo "2583"]
[Annotator "RC"]
[PlyCount "112"]
[EventDate "2018.06.26"]
[EventType "swiss"]
[EventCountry "RUS"]
[SourceTitle "playchess.com"]
[Source "ChessBase"]
[SourceQuality "1"]
[TimeControl "40/5400+30:1800+30"]

1. d4 {[%emt 0:00:00]} d5 {[%emt 0:00:00]} 2. c4 {[%emt 0:00:00]} e6 {[%emt 0:00:00]} 3. Nf3 {[%emt 0:00:00]} a6 {[%emt 0:00:25]} 4. e3 {[%emt 0:00:47]} Nf6 {[%emt 0:00:39]} 5. b3 {[%emt 0:00:11]} b6 {[%emt 0:02:00]} 6. Bb2 {[%emt 0:05:21]} Bd6 {[%emt 0:02:14]} 7. g3 {[%emt 0:00:58]} Bb7 {[%emt 0:02:53]} 8. Bg2 {[%emt 0:00:43]} dxc4 9. bxc4 {[%emt 0:00:37]} O-O {[%emt 0:07:03]} 10. O-O {[%emt 0:04:13]} Nbd7 {[%emt 0:00:19]} 11. Nc3 {[%emt 0:03:22]} Qe7 {[%emt 0:09:36]} 12. Qc2 {[%emt 0:04:46]} c5 {[%emt 0:02:59]} 13. d5 {[%emt 0:04:18]} exd5 {[%emt 0:00:17]} 14. Nh4 {[%emt 0:00:44]} g6 {[%emt 0:00:10]} 15. Nxd5 {[%emt 0:13:45]} Nxd5 {[%emt 0:00:52]} 16. cxd5 {[%emt 0:02:02]} b5 {[%emt 0:00:08]} 17. e4 {[%emt 0:17:51]} c4 {[%emt 0:01:05]} 18. f4 {[%emt 0:00:19]} Rac8 {[%emt 0:08:02]} 19. Rad1 {[%emt 0:00:58]} c3 {[%emt 0:02:24]} 20. Bc1 {[%emt 0:00:24]} Ba3 {[%emt 0:05:28]} 21. Be3 {[%emt 0:09:00]} Rc4 {[%emt 0:06:39]} 22. e5 {[%emt 0:02:45]} Bc5 {[%emt 0:00:09]} 23. d6 {[%emt 0:00:41]} Bxe3+ {[%emt 0:05:54]} 24. Kh1 {[%emt 0:00:06]} Bxg2+ {[%emt 0:03:54]} 25. Nxg2 {[%emt 0:00:11]} Qe6 {[%emt 0:00:04]} 26. Nxe3 {[%emt 0:00:27]} Rc5 {[%emt 0:00:05]} 27. Rfe1 {[%emt 0:10:27]} b4 {[%emt 0:01:10]} 28. Rd4 {[%emt 0:02:43]} a5 {[%emt 0:00:33]} 29. Re2 {[%emt 0:04:45]} Rfc8 {[%emt 0:10:27]} 30. Kg2 {[%emt 0:00:33]} f6 {[%emt 0:03:33]} 31. exf6 {[%emt 0:03:37]} Re8 {[%emt 0:05:02]} 32. Kf1 {[%emt 0:03:45]} Kf7 {[%emt 0:07:06]} 33. Nc4 {[%emt 0:01:22]} Qxe2+ {[%emt 0:06:19]} 34. Qxe2 {[%emt 0:00:01]} Rxe2 {[%emt 0:00:07]} 35. Kxe2 {[%emt 0:00:03]} Kxf6 {[%emt 0:00:57]} 36. Kd3 {[%emt 0:03:21]} g5 {[%emt 0:01:22]} 37. fxg5+ {[%emt 0:02:20]} Rxg5 {[%emt 0:00:44]} 38. a3 {[%emt 0:00:15]} Rb5 {[%emt 0:03:36]} 39. axb4 {[%emt 0:00:59]} axb4 {[%emt 0:00:04]} 40. Rh4 {[%emt 0:00:00]} h5 {[%emt 0:00:00]} 41. Kc2 {[%emt 0:15:36]} Ke6 {[%emt 0:08:18]} 42. Rd4 {[%emt 0:03:15]} Rf5 {[%emt 0:04:15]} 43. Rd1 {[%emt 0:02:18]} Nc5 {[%emt 0:04:05]} 44. Re1+ {[%emt 0:00:04]} Kd7 {[%emt 0:00:07]} 45. Re2 {[%emt 0:00:26]} Rf1 {[%emt 0:02:31]} 46. Ne3 {[%emt 0:03:43]} Ra1 {[%emt 0:01:45]} 47. Nd5 {[%emt 0:00:01]} Ra2+ {[%emt 0:03:08]} 48. Kd1 {[%emt 0:00:01]} Rxe2 {[%emt 0:00:23]} 49. Kxe2 {[%emt 0:00:01]} c2 {[%emt 0:00:09]} 50. Kd2 {[%emt 0:00:02]} b3 {[%emt 0:00:07]} 51. Nb4 {[%emt 0:00:07]} Kxd6 {[%emt 0:03:42]} 52. Nxc2 {[%emt 0:00:02]} Ne4+ {[%emt 0:00:07]} 53. Kc1 {[%emt 0:00:10]} bxc2 {[%emt 0:00:05]} 54. Kxc2 {[%emt 0:00:01]} Nf2 {[%emt 0:00:07]} 55. Kd2 {[%emt 0:00:48]} Ng4 {[%emt 0:00:09]} 56. h3 {[%emt 0:00:03]} Nf2 {[%emt 0:00:07]} 0-1

[Event "71st RUS-ch Higher League 2018"]
[Site "Yaroslavl"]
[Date "2018.06.28"]
[Round "3"]
[White "Khismatullin, Denis"]
[Black "Oparin, Grigoriy"]
[Result "1/2-1/2"]
[ECO "E17"]
[WhiteElo "2627"]
[BlackElo "2587"]
[Annotator "RC"]
[PlyCount "114"]
[EventDate "2018.06.26"]
[EventType "swiss"]
[EventCountry "RUS"]
[SourceTitle "playchess.com"]
[Source "ChessBase"]
[SourceQuality "1"]
[TimeControl "40/5400+30:1800+30"]

1. Nf3 {[%emt 0:02:10]} Nf6 {[%emt 0:00:00]} 2. g3 {[%emt 0:00:05]} b6 {[%emt 0:00:00]} 3. d4 {[%emt 0:01:47]} Bb7 {[%emt 0:00:00]} 4. c4 {[%emt 0:00:08]} e6 {[%emt 0:00:09]} 5. Bg2 {[%emt 0:00:04]} Be7 {[%emt 0:00:06]} 6. O-O {[%emt 0:00:05]} O-O {[%emt 0:00:05]} 7. Re1 {[%emt 0:01:07]} Na6 {[%emt 0:00:33]} 8. Nc3 {[%emt 0:03:50]} Ne4 {[%emt 0:00:06]} 9. h4 {[%emt 0:00:17]} f5 {[%emt 0:09:20]} 10. Bf4 {[%emt 0:07:39]} Bf6 {[%emt 0:13:49]} 11. Ng5 {[%emt 0:17:35]} Nxc3 {[%emt 0:28:34]} 12. bxc3 {[%emt 0:00:41]} Bxg2 {[%emt 0:00:04]} 13. Kxg2 {[%emt 0:00:07]} Bxg5 {[%emt 0:00:05]} 14. hxg5 {[%emt 0:02:30]} d6 {[%emt 0:20:55]} 15. e4 {[%emt 0:12:10]} Qd7 {[%emt 0:00:24]} 16. Qd3 {[%emt 0:10:28]} Rae8 {[%emt 0:05:08]} 17. c5 {[%emt 0:07:19]} e5 {[%emt 0:01:47]} 18. Bd2 {[%emt 0:18:37]} Nb8 {[%emt 0:00:19]} 19. cxd6 {[%emt 0:00:13]} cxd6 {[%emt 0:01:27]} 20. dxe5 {[%emt 0:01:19]} dxe5 {[%emt 0:00:36]} 21. Qxd7 {[%emt 0:00:56]} Nxd7 {[%emt 0:00:04]} 22. exf5 {[%emt 0:00:23]} Rxf5 {[%emt 0:00:05]} 23. Be3 {[%emt 0:02:40]} e4 {[%emt 0:03:06]} 24. a4 {[%emt 0:02:40]} Nc5 {[%emt 0:01:23]} 25. Reb1 {[%emt 0:01:05]} Ne6 {[%emt 0:06:51]} 26. Rb5 {[%emt 0:01:34]} g6 {[%emt 0:00:13]} 27. Rxf5 {[%emt 0:05:13]} gxf5 {[%emt 0:00:03]} 28. a5 {[%emt 0:00:06]} Rc8 {[%emt 0:01:13]} 29. axb6 {[%emt 0:01:00]} axb6 {[%emt 0:00:04]} 30. Rb1 {[%emt 0:00:32]} Rxc3 {[%emt 0:00:27]} 31. Rb5 {[%emt 0:00:21]} Ng7 {[%emt 0:02:04]} 32. Rxb6 {[%emt 0:00:26]} Rd3 {[%emt 0:00:08]} 33. Kf1 {[%emt 0:00:42]} Rd5 {[%emt 0:03:37]} 34. Kg2 {[%emt 0:00:36]} Ne8 {[%emt 0:02:07]} 35. Bf4 {[%emt 0:00:13]} Ng7 {[%emt 0:00:04]} 36. Kh3 {[%emt 0:00:25]} Kf7 {[%emt 0:01:01]} 37. Rb7+ {[%emt 0:00:49]} Kg8 {[%emt 0:00:52]} 38. Rb6 {[%emt 0:00:17]} Kf7 {[%emt 0:00:04]} 39. Rf6+ {[%emt 0:00:17]} Kg8 {[%emt 0:00:08]} 40. Ra6 {[%emt 0:00:00]} Kf7 {[%emt 0:00:00]} 41. Rf6+ {[%emt 0:16:11]} Kg8 {[%emt 0:00:25]} 42. Bc1 {[%emt 0:07:40]} Ne8 {[%emt 0:03:25]} 43. Rb6 {[%emt 0:01:16]} Nd6 {[%emt 0:03:15]} 44. Rb8+ {[%emt 0:05:30]} Kf7 {[%emt 0:00:29]} 45. Rh8 {[%emt 0:01:07]} Kg6 {[%emt 0:00:19]} 46. Rd8 {[%emt 0:01:21]} Rd3 {[%emt 0:01:10]} 47. Bf4 {[%emt 0:01:24]} Nb5 {[%emt 0:01:45]} 48. Rg8+ {[%emt 0:00:29]} Kf7 {[%emt 0:00:06]} 49. Rh8 {[%emt 0:00:29]} Kg6 {[%emt 0:00:45]} 50. Rb8 {[%emt 0:00:19]} Nd4 {[%emt 0:03:20]} 51. Rb6+ {[%emt 0:00:25]} Kf7 {[%emt 0:00:06]} 52. Rf6+ {[%emt 0:00:46]} Kg8 {[%emt 0:00:27]} 53. Kh4 {[%emt 0:00:35]} Rd1 {[%emt 0:02:00]} 54. Kh3 {[%emt 0:00:29]} Nf3 {[%emt 0:00:46]} 55. Rxf5 {[%emt 0:00:25]} Rh1+ {[%emt 0:00:04]} 56. Kg2 {[%emt 0:00:04]} Rg1+ {[%emt 0:00:10]} 57. Kh3 {[%emt 0:00:04]} Rh1+ {[%emt 0:00:04]} 1/2-1/2

[Event "71st RUS-ch Higher League 2018"]
[Site "Yaroslavl"]
[Date "2018.06.28"]
[Round "3"]
[White "Predke, Alexandr"]
[Black "Iskusnyh, Sergei"]
[Result "1-0"]
[ECO "C02"]
[WhiteElo "2613"]
[BlackElo "2473"]
[Annotator "ChessBase"]
[PlyCount "69"]
[EventDate "2018.06.26"]
[EventType "swiss"]
[EventCountry "RUS"]
[SourceTitle "playchess.com"]
[Source "ChessBase"]
[SourceQuality "1"]
[TimeControl "40/5400+30:1800+30"]

1. e4 {[%emt 0:01:20]} e6 {[%emt 0:00:00]} 2. d4 {[%emt 0:00:05]} d5 {[%emt 0:00:00]} 3. e5 {[%emt 0:00:15]} c5 {[%emt 0:00:36]} 4. c3 {[%emt 0:01:34]} Nc6 {[%emt 0:00:07]} 5. Nf3 {[%emt 0:00:10]} Qb6 {[%emt 0:03:51]} 6. Na3 {[%emt 0:00:09]} Bd7 {[%emt 0:11:02]} 7. Nc2 {[%emt 0:11:14]} cxd4 {[%emt 0:00:41]} 8. Ncxd4 {[%emt 0:01:09]} Nxd4 {[%emt 0:10:13]} 9. Nxd4 {[%emt 0:00:18]} Bc5 {[%emt 0:03:17]} 10. b4 {[%emt 0:14:11]} Bxd4 {[%emt 0:18:09]} 11. Qxd4 {[%emt 0:00:04]} Qc7 {[%emt 0:00:09]} 12. Bd3 {[%emt 0:20:01]} Ne7 {[%emt 0:00:31]} 13. Bf4 {[%emt 0:02:50]} a6 {[%emt 0:26:41]} 14. a4 {[%emt 0:02:06]} Rc8 {[%emt 0:09:44]} 15. Ra3 {[%emt 0:11:39]} g5 {[%emt 0:05:47]} 16. Bxg5 {[%emt 0:08:26]} Nc6 {[%emt 0:00:07]} 17. Qh4 {[%emt 0:00:26]} Nxe5 {[%emt 0:01:58]} 18. Be2 {[%emt 0:00:58]} Ng6 {[%emt 0:02:13]} 19. Qg3 {[%emt 0:00:47]} O-O {[%emt 0:02:20]} 20. Qe3 {[%emt 0:12:55]} f5 {[%emt 0:01:59]} 21. h4 {[%emt 0:01:48]} f4 {[%emt 0:00:24]} 22. Qd4 {[%emt 0:02:29]} Qe5 {[%emt 0:00:21]} 23. Bh6 {[%emt 0:01:47]} Qxd4 {[%emt 0:00:44]} 24. cxd4 {[%emt 0:00:04]} Rc1+ {[%emt 0:00:32]} 25. Bd1 {[%emt 0:00:03]} Rf7 {[%emt 0:00:31]} 26. h5 {[%emt 0:01:43]} Ne7 {[%emt 0:00:26]} 27. Rh4 {[%emt 0:00:36]} Nc6 {[%emt 0:00:30]} 28. b5 {[%emt 0:03:47]} Nxd4 {[%emt 0:00:34]} 29. Rg4+ {[%emt 0:00:04]} Kh8 {[%emt 0:00:10]} 30. Bxf4 {[%emt 0:00:04]} Rxf4 {[%emt 0:00:10]} 31. Rxf4 {[%emt 0:00:04]} Nc2+ {[%emt 0:00:07]} 32. Kd2 {[%emt 0:00:10]} Nxa3 {[%emt 0:01:17]} 33. Kxc1 {[%emt 0:00:33]} axb5 {[%emt 0:00:16]} 34. Rf7 {[%emt 0:00:41]} Bc6 {[%emt 0:00:05]} 35. h6 {[%emt 0:00:04]} 1-0

[Event "71st RUS-ch Higher League 2018"]
[Site "Yaroslavl"]
[Date "2018.06.28"]
[Round "3"]
[White "Goganov, Aleksey"]
[Black "Triapishko, Alexandr"]
[Result "1-0"]
[ECO "A50"]
[WhiteElo "2576"]
[BlackElo "2513"]
[Annotator "RC"]
[PlyCount "85"]
[EventDate "2018.06.26"]
[EventType "swiss"]
[EventCountry "RUS"]
[SourceTitle "playchess.com"]
[Source "ChessBase"]
[SourceQuality "1"]
[TimeControl "40/5400+30:1800+30"]

1. d4 {[%emt 0:00:00]} Nf6 {[%emt 0:00:00]} 2. c4 {[%emt 0:00:00]} g6 {[%emt 0:00:07]} 3. f3 {[%emt 0:00:00]} Nc6 {[%emt 0:00:38]} 4. d5 {[%emt 0:00:11]} Ne5 {[%emt 0:00:13]} 5. e4 {[%emt 0:03:01]} e6 {[%emt 0:00:21]} 6. f4 {[%emt 0:16:37]} Nxe4 {[%emt 0:00:14]} 7. fxe5 {[%emt 0:00:11]} Qh4+ {[%emt 0:00:07]} 8. g3 {[%emt 0:02:29]} Nxg3 {[%emt 0:00:55]} 9. hxg3 {[%emt 0:00:21]} Qxh1 {[%emt 0:00:18]} 10. Nf3 {[%emt 0:01:35]} Bg7 {[%emt 0:00:14]} 11. Nc3 {[%emt 0:06:48]} O-O {[%emt 0:07:58]} 12. Bf4 {[%emt 0:09:14]} d6 {[%emt 0:13:32]} 13. Ne4 {[%emt 0:05:42]} exd5 {[%emt 0:16:57]} 14. Nf2 {[%emt 0:01:22]} Qh5 {[%emt 0:00:16]} 15. Be2 {[%emt 0:01:37]} Bg4 {[%emt 0:19:18]} 16. Nxg4 {[%emt 0:01:07]} Qxg4 {[%emt 0:00:19]} 17. exd6 {[%emt 0:00:21]} cxd6 {[%emt 0:05:30]} 18. Qxd5 {[%emt 0:00:31]} Rfe8 {[%emt 0:02:50]} 19. Kf2 {[%emt 0:08:05]} Qe6 {[%emt 0:11:04]} 20. Qxe6 {[%emt 0:03:25]} Rxe6 {[%emt 0:00:19]} 21. Rd1 {[%emt 0:10:54]} Bxb2 {[%emt 0:04:09]} 22. Ng5 {[%emt 0:01:05]} Ree8 {[%emt 0:04:06]} 23. Bf3 {[%emt 0:00:32]} Be5 {[%emt 0:01:55]} 24. Bxb7 {[%emt 0:01:09]} Bxf4 {[%emt 0:03:16]} 25. gxf4 {[%emt 0:00:07]} Rab8 {[%emt 0:00:59]} 26. Bd5 {[%emt 0:04:45]} Re7 {[%emt 0:03:24]} 27. Rh1 {[%emt 0:02:36]} Rb2+ {[%emt 0:00:57]} 28. Kf3 {[%emt 0:00:54]} h5 {[%emt 0:00:17]} 29. f5 {[%emt 0:00:18]} Kg7 {[%emt 0:02:42]} 30. Ne4 {[%emt 0:00:17]} gxf5 {[%emt 0:00:50]} 31. Rg1+ {[%emt 0:03:38]} Kf8 {[%emt 0:00:08]} 32. Nxd6 {[%emt 0:00:11]} Rxa2 {[%emt 0:00:10]} 33. Nxf5 {[%emt 0:00:12]} Ree2 {[%emt 0:00:58]} 34. Rg5 {[%emt 0:02:50]} Rh2 {[%emt 0:01:04]} 35. Kg3 {[%emt 0:00:59]} Rad2 {[%emt 0:00:52]} 36. Nh4 {[%emt 0:01:42]} Rhe2 {[%emt 0:00:16]} 37. Rxh5 {[%emt 0:01:53]} Rd3+ {[%emt 0:00:42]} 38. Kf4 {[%emt 0:00:22]} Rf2+ {[%emt 0:00:32]} 39. Ke4 {[%emt 0:00:56]} Rd1 {[%emt 0:00:28]} 40. Nf5 {[%emt 0:00:00]} Ke8 {[%emt 0:00:00]} 41. Ke5 {[%emt 0:02:40]} Kd8 {[%emt 0:21:38]} 42. Kd6 {[%emt 0:01:53]} Re2 {[%emt 0:00:15]} 43. Ng7 {[%emt 0:00:11]} 1-0

[Event "71st RUS-ch Higher League 2018"]
[Site "Yaroslavl"]
[Date "2018.06.28"]
[Round "3"]
[White "Goryachkina, Aleksandra"]
[Black "Kobalia, Mikhail"]
[Result "1/2-1/2"]
[ECO "D10"]
[WhiteElo "2505"]
[BlackElo "2608"]
[Annotator "RC"]
[PlyCount "87"]
[EventDate "2018.06.26"]
[EventType "swiss"]
[EventCountry "RUS"]
[SourceTitle "playchess.com"]
[Source "ChessBase"]
[SourceQuality "1"]
[TimeControl "40/5400+30:1800+30"]

1. d4 {[%emt 0:00:00]} d5 {[%emt 0:01:05]} 2. c4 {[%emt 0:00:00]} c6 {[%emt 0:00:04]} 3. cxd5 {[%emt 0:00:10]} cxd5 {[%emt 0:00:05]} 4. Bf4 {[%emt 0:00:13]} Nc6 {[%emt 0:00:15]} 5. e3 {[%emt 0:00:16]} Nf6 {[%emt 0:00:55]} 6. Nc3 {[%emt 0:00:24]} a6 {[%emt 0:00:05]} 7. Bd3 {[%emt 0:00:46]} Bg4 {[%emt 0:00:09]} 8. Nge2 {[%emt 0:00:23]} e6 {[%emt 0:00:07]} 9. O-O {[%emt 0:00:14]} Bd6 {[%emt 0:01:20]} 10. f3 {[%emt 0:07:32]} Bh5 {[%emt 0:00:17]} 11. Rc1 {[%emt 0:02:40]} Bg6 {[%emt 0:00:44]} 12. Bxd6 {[%emt 0:05:52]} Qxd6 {[%emt 0:00:19]} 13. Nf4 {[%emt 0:01:14]} Bxd3 {[%emt 0:01:40]} 14. Nxd3 {[%emt 0:00:14]} O-O {[%emt 0:00:06]} 15. Na4 {[%emt 0:01:58]} Nd7 {[%emt 0:05:04]} 16. Qd2 {[%emt 0:10:05]} Rfe8 {[%emt 0:05:21]} 17. Nac5 {[%emt 0:07:53]} Nxc5 {[%emt 0:04:40]} 18. Nxc5 {[%emt 0:00:31]} b6 {[%emt 0:07:25]} 19. Nd3 {[%emt 0:00:24]} Rac8 {[%emt 0:05:47]} 20. Rc3 {[%emt 0:04:07]} f6 {[%emt 0:02:09]} 21. Rfc1 {[%emt 0:01:05]} Ne7 {[%emt 0:02:23]} 22. Qd1 {[%emt 0:05:48]} Kf7 {[%emt 0:04:52]} 23. Qa4 {[%emt 0:06:31]} a5 {[%emt 0:00:29]} 24. Nf4 {[%emt 0:01:33]} g6 {[%emt 0:03:29]} 25. g3 {[%emt 0:09:40]} Rxc3 {[%emt 0:01:37]} 26. Rxc3 {[%emt 0:00:06]} Rc8 {[%emt 0:00:24]} 27. Rxc8 {[%emt 0:02:17]} Nxc8 {[%emt 0:00:48]} 28. Qc2 {[%emt 0:01:18]} Ne7 {[%emt 0:02:32]} 29. Kf2 {[%emt 0:00:46]} Qc6 {[%emt 0:04:32]} 30. Qxc6 {[%emt 0:01:44]} Nxc6 {[%emt 0:00:02]} 31. Nd3 {[%emt 0:01:35]} e5 {[%emt 0:02:44]} 32. dxe5 {[%emt 0:04:06]} fxe5 {[%emt 0:00:14]} 33. e4 {[%emt 0:00:32]} dxe4 {[%emt 0:15:47]} 34. fxe4 {[%emt 0:00:05]} Ke6 {[%emt 0:00:05]} 35. h4 {[%emt 0:01:28]} h5 {[%emt 0:05:21]} 36. Ke3 {[%emt 0:00:23]} Kd6 {[%emt 0:01:00]} 37. Kd2 {[%emt 0:00:53]} Nd4 {[%emt 0:00:42]} 38. Ke3 {[%emt 0:03:03]} b5 {[%emt 0:04:22]} 39. Kd2 {[%emt 0:01:07]} Ne6 {[%emt 0:00:49]} 40. Ke3 {[%emt 0:00:00]} Nc5 {[%emt 0:00:00]} 41. Ne1 {[%emt 0:04:41]} Na4 {[%emt 0:04:05]} 42. Nd3 {[%emt 0:00:16]} Nc5 {[%emt 0:00:31]} 43. Ne1 {[%emt 0:00:09]} Na4 {[%emt 0:00:02]} 44. Nd3 {[%emt 0:00:09]} 1/2-1/2

[Event "71st RUS-ch Higher League 2018"]
[Site "Yaroslavl"]
[Date "2018.06.28"]
[Round "3"]
[White "Yanchenko, Roman"]
[Black "Esipenko, Andrey"]
[Result "1/2-1/2"]
[ECO "D45"]
[WhiteElo "2462"]
[BlackElo "2599"]
[Annotator "ChessBase"]
[PlyCount "112"]
[EventDate "2018.06.26"]
[EventType "swiss"]
[EventCountry "RUS"]
[SourceTitle "playchess.com"]
[Source "ChessBase"]
[SourceQuality "1"]
[TimeControl "40/5400+30:1800+30"]

1. Nf3 {[%emt 0:00:00]} d5 {[%emt 0:00:01]} 2. d4 {[%emt 0:00:00]} Nf6 {[%emt 0:00:06]} 3. c4 {[%emt 0:00:00]} e6 {[%emt 0:00:03]} 4. Nc3 {[%emt 0:00:25]} c6 {[%emt 0:00:06]} 5. e3 {[%emt 0:00:02]} Nbd7 {[%emt 0:00:04]} 6. Qc2 {[%emt 0:00:17]} b6 {[%emt 0:00:07]} 7. b3 {[%emt 0:00:09]} Bb7 {[%emt 0:00:07]} 8. Bb2 {[%emt 0:01:37]} Bd6 {[%emt 0:00:21]} 9. Bd3 {[%emt 0:00:26]} O-O {[%emt 0:00:25]} 10. O-O {[%emt 0:00:09]} h6 {[%emt 0:15:29]} 11. e4 {[%emt 0:07:36]} dxe4 {[%emt 0:01:19]} 12. Nxe4 {[%emt 0:00:07]} Nxe4 {[%emt 0:00:13]} 13. Bxe4 {[%emt 0:00:03]} Nf6 {[%emt 0:02:16]} 14. c5 {[%emt 0:01:06]} Nxe4 {[%emt 0:00:55]} 15. Qxe4 {[%emt 0:00:08]} Bc7 {[%emt 0:00:06]} 16. Ne5 {[%emt 0:02:00]} Qd5 {[%emt 0:02:43]} 17. Qxd5 {[%emt 0:00:22]} exd5 {[%emt 0:00:13]} 18. Rac1 {[%emt 0:01:00]} b5 {[%emt 0:01:04]} 19. Rfe1 {[%emt 0:01:56]} Rfd8 {[%emt 0:03:21]} 20. Bc3 {[%emt 0:03:06]} Re8 {[%emt 0:08:01]} 21. f3 {[%emt 0:03:15]} f6 {[%emt 0:00:25]} 22. Nd3 {[%emt 0:00:07]} Kf7 {[%emt 0:00:25]} 23. Rxe8 {[%emt 0:00:18]} Rxe8 {[%emt 0:00:04]} 24. Re1 {[%emt 0:00:02]} Ra8 {[%emt 0:03:03]} 25. Bd2 {[%emt 0:01:55]} g5 {[%emt 0:00:08]} 26. Re2 {[%emt 0:01:48]} a5 {[%emt 0:01:29]} 27. a3 {[%emt 0:04:38]} b4 {[%emt 0:09:00]} 28. axb4 {[%emt 0:01:48]} Ba6 {[%emt 0:00:07]} 29. Re3 {[%emt 0:00:03]} axb4 {[%emt 0:00:07]} 30. g3 {[%emt 0:03:45]} Bb5 {[%emt 0:02:33]} 31. Nxb4 {[%emt 0:03:16]} Ra3 {[%emt 0:11:01]} 32. Kf2 {[%emt 0:02:36]} h5 {[%emt 0:01:05]} 33. Re1 {[%emt 0:05:30]} Ba5 {[%emt 0:08:16]} 34. Nc2 {[%emt 0:03:07]} Ra2 {[%emt 0:02:46]} 35. Bxa5 {[%emt 0:00:05]} Rxc2+ {[%emt 0:00:12]} 36. Kg1 {[%emt 0:00:02]} Rb2 {[%emt 0:01:44]} 37. Re3 {[%emt 0:02:00]} Ra2 {[%emt 0:07:42]} 38. Bd8 {[%emt 0:00:08]} Ra8 {[%emt 0:00:20]} 39. Bc7 {[%emt 0:00:55]} Ra1+ {[%emt 0:00:32]} 40. Kf2 {[%emt 0:00:00]} Ra2+ {[%emt 0:00:00]} 41. Kg1 {[%emt 0:00:04]} h4 {[%emt 0:08:28]} 42. gxh4 {[%emt 0:00:10]} gxh4 {[%emt 0:00:13]} 43. h3 {[%emt 0:03:13]} Rd2 {[%emt 0:01:45]} 44. Bd8 {[%emt 0:00:06]} Rxd4 {[%emt 0:00:07]} 45. Re7+ {[%emt 0:00:04]} Kg6 {[%emt 0:00:06]} 46. Re6 {[%emt 0:00:13]} Rf4 {[%emt 0:03:00]} 47. Kf2 {[%emt 0:00:14]} d4 {[%emt 0:01:24]} 48. Re4 {[%emt 0:02:01]} Rxe4 {[%emt 0:02:20]} 49. fxe4 {[%emt 0:00:02]} Ba6 {[%emt 0:00:24]} 50. Bc7 {[%emt 0:01:30]} Bc8 {[%emt 0:00:18]} 51. Ke2 {[%emt 0:00:12]} Bxh3 {[%emt 0:02:17]} 52. Kd3 {[%emt 0:00:04]} Bf1+ {[%emt 0:00:10]} 53. Kxd4 {[%emt 0:00:02]} Kg5 {[%emt 0:00:06]} 54. Ke3 {[%emt 0:00:29]} Kg4 {[%emt 0:00:33]} 55. e5 {[%emt 0:00:30]} fxe5 {[%emt 0:00:12]} 56. Bxe5 {[%emt 0:00:02]} Bb5 {[%emt 0:00:11]} 1/2-1/2